Cogmind - Beta 14 @@@ ROGUE MODE // 2024.12.10 @ 11:31:41 Player: Shimmyarah Result: Destroyed by as-12513 with Assembled Heavy Rifle Performance ------------- Evolutions (1) 500 Regions Visited (4) 800 Robots Destroyed (51) 255 Value Destroyed (958) 958 Prototype IDs (6) 120 Alien Tech Used (0) 0 Bonus (0) 0 TOTAL SCORE: 2633 Bonus ------- None Cogmind --------- Core Integrity 0/400 Matter 275/300 Energy 41/100 System Corruption 5% Temperature Cool (0) Movement Core (50) Location -9/Exiles Parts ------- > --- POWER (1) -------- (None) > --- PROPULSION (3) --- (None) > --- UTILITY (3) ------ Targeting Computer > --- WEAPON (2) ------- (None) > --- INVENTORY (5) ---- Cooling System Hardlight Generator Grenade Launcher Rocket Launcher Katana Peak State ------------ > --- POWER ------------ Improved Ion Engine > --- PROPULSION ------- Armored Wheel Armored Wheel Armored Wheel > --- UTILITY ---------- Huge Storage Unit Recoil Stabilizer Medium Armor Plating > --- WEAPON ----------- Minigun Minigun > --- INVENTORY -------- Improved Ion Engine Armored Wheel Armored Wheel Armored Wheel Armored Wheel Armored Wheel Armored Wheel Cooling System Medium Matter Pod Improved Terrain Scanner Targeting Computer Targeting Computer Recoil Stabilizer Recoil Stabilizer Light Armor Plating Hardlight Generator Hardlight Generator Shield Generator Field Recycling Unit Minigun Grenade Launcher Grenade Launcher Grenade Launcher Rocket Launcher Katana [Rating: 25] Favorites ----------- Power Improved Ion Engine Engine Improved Ion Engine Propulsion Armored Wheel Treads Improved Treads Leg Aluminum Leg Wheel Armored Wheel Utility Recoil Stabilizer Device Recoil Stabilizer Storage Huge Storage Unit Processor Targeting Computer Hackware Hacking Suite Protection Light Armor Plating Weapon Minigun Energy Gun Small Laser Ballistic Gun Minigun Ballistic Cannon Improved Light Cannon Special Weapon Mining Laser Build | -11 -10 -9 -9 -9 ------- Run | Yrd Mat Mat Min Exi Slots Evolved 2 | . . 2 . . Power . | . . . . . Propulsion 1 | . . 1 . . Utility 1 | . . 1 . . Weapon . | . . . . . Parts Attached 57 | 3 16 27 3 8 Power 10 | . 2 6 1 1 Engine 10 | . 2 6 1 1 Core . | . . . . . Reactor . | . . . . . Propulsion 13 | . 4 6 . 3 Treads 5 | . 4 1 . . Leg . | . . . . . Wheel 8 | . . 5 . 3 Hover . | . . . . . Flight . | . . . . . Utility 16 | 2 3 7 1 3 Device 7 | 2 2 2 . 1 Storage 2 | . 1 1 . . Processor 1 | . . . . 1 Hackware 1 | . . 1 . . Protection 5 | . . 3 1 1 Artifact . | . . . . . Weapon 18 | 1 7 8 1 1 Energy Gun 2 | 1 1 . . . Energy Cannon . | . . . . . Ballistic Gun 9 | . . 7 1 1 Ballistic Cannon 5 | . 4 1 . . Launcher . | . . . . . Special Weapon 2 | . 2 . . . Impact Weapon . | . . . . . Slashing Weapon . | . . . . . Piercing Weapon . | . . . . . Special Melee Weapon . | . . . . . Unidentified Prototypes 2 | . . 2 . . Parts Lost 19 | . 1 2 1 15 Power 3 | . . 1 . 2 Propulsion 6 | . . . . 6 Utility 6 | . 1 1 . 4 Weapon 4 | . . . 1 3 Highest Loss Streak 15 | . 1 1 1 15 To Critical Strikes 3 | . . . . 3 Average Slot Usage (%) 98 | . 98 98 100 91 Engine 11 | . 14 10 11 9 Treads 7 | . 21 . . . Leg 2 | . 6 . . . Wheel 21 | . . 31 33 30 Device 11 | . 12 10 11 9 Storage 11 | . 14 11 11 10 Hackware 1 | . . 3 . . Protection 6 | . . 7 11 9 Energy Gun 2 | . 6 . . . Ballistic Gun 13 | . . 18 22 20 Ballistic Cannon 7 | . 18 3 . . Peak Build Rating 25 | 9 13 24 25 25 Average Rating 17 | 7 10 20 23 23 On Entrance 15 | 6 8 12 24 25 Naked Turns . | . . . . . Heaviest Build 101 | 11 34 97 101 101 Greatest Support 69 | 20 46 69 36 36 Greatest Overweight (x) 11 | . 1 11 2 7 Average Overweight (x) 1 | . . 1 2 1 Largest Inventory Capacity 25 | 8 15 25 25 25 Average Capacity 19 | 8 14 19 25 24 Most Carried 25 | 8 15 25 25 25 Average Carried 18 | 6 13 18 24 24 Final Capacity 25 | 8 15 25 25 5 Final Carried 25 | 8 15 25 25 5 Class Distribution -------------------- 100% | Mutant Dominant Class ---------------- Mutant | -10/Materials Mutant | -9/Materials Mutant | -9/Mines Mutant | -9/Exiles Resources | -11 -10 -9 -9 -9 ----------- Run | Yrd Mat Mat Min Exi Matter Collected 1576 | 230 237 923 154 32 Remotely . | . . . . . Salvage Created 1574 | 172 295 1030 77 . Parts 122 | 17 24 69 12 . Haulers Intercepted 6 | . 2 4 . . Recyclers Shooed 3 | . 3 . . . Parts Field Recycled . | . . . . . Retrieved Matter . | . . . . . Parts Self-Destructed . | . . . . . Prevented . | . . . . . Kills | -11 -10 -9 -9 -9 ------- Run | Yrd Mat Mat Min Exi Combat Hostiles Destroyed 28 | . 7 16 5 . Guns 20 | . . 15 5 . Cannons 8 | . 7 1 . . Classes Destroyed 11 | 2 6 3 . . Worker 3 | . 2 1 . . Builder 1 | . . 1 . . Tunneler 5 | 5 . . . . Hauler 6 | . 2 4 . . Recycler 2 | 1 1 . . . Operator 2 | . 1 1 . . Watcher 4 | . 2 2 . . Swarmer 10 | . 5 . 5 . Grunt 12 | . 2 10 . . Brawler 1 | . . 1 . . Sentry 5 | . . 5 . . Best Kill Streak 6 | 3 6 3 3 . Combat Bots Only 5 | . 5 3 3 . Max Kills in Single Turn 2 | 1 2 2 1 . Gunslinging . | . . . . . Exploded . | . . . . . Melee . | . . . . . Uniques/NPCs Destroyed . | . . . . . Combat | -11 -10 -9 -9 -9 -------- Run | Yrd Mat Mat Min Exi Hostile Shots Fired 195 | . 61 48 11 75 Missed 47 | . 15 11 2 19 Damage Taken 2723 | . 379 573 86 1685 Core 432 | . 25 43 27 337 Absorbed by Shields . | . . . . . Core Remaining (%) 95 | 100 90 . . . Volleys Fired 120 | 9 38 67 6 . Largest 2 | 2 2 2 2 . Hottest 100 | 80 100 78 50 . Shots Fired 232 | 18 68 134 11 1 Gun 158 | 18 2 126 11 1 Cannon 66 | . 58 8 . . Launcher . | . . . . . Special 8 | . 8 . . . Kinetic 204 | . 58 134 11 1 Thermal 27 | 17 10 . . . Explosive . | . . . . . Electromagnetic 1 | 1 . . . . Robot Hit Streak 9 | 3 6 9 2 . Robot Miss Streak 4 | 2 4 4 3 1 Penetration Max . | . . . . . Secondary Targets 1 | . . . 1 . Max Gunslinging Chain 1 | . . . 1 . Shots Hit Robots 122 | 9 30 78 5 . Core Hits 59 | 7 15 32 5 . Critical Kills . | . . . . . Critical Parts Destroyed . | . . . . . Critical Strikes 2 | . 2 . . . Blast 2 | . 2 . . . Melee Attacks . | . . . . . Impact . | . . . . . Slashing . | . . . . . Piercing . | . . . . . Sneak Attacks . | . . . . . Combat Hostiles . | . . . . . Follow-up Attacks . | . . . . . Damage Inflicted 2298 | 98 651 1451 98 . Guns 1491 | 98 11 1302 80 . Cannons 691 | . 626 65 . . Explosions . | . . . . . Melee . | . . . . . Ramming 116 | . 14 84 18 . Kinetic 2073 | . 626 1367 80 . Thermal 109 | 98 11 . . . Explosive . | . . . . . Electromagnetic . | . . . . . Impact . | . . . . . Slashing . | . . . . . Piercing . | . . . . . Highest Corruption 5 | . . 2 2 5 Average Corruption 2 | . . 2 2 2 Corruption Purged . | . . . . . Corruption Blocked . | . . . . . Effects 24 | . . 9 12 3 Message Errors 6 | . . 3 2 1 Matter Fused 4 | . . 3 . 1 Heat Flow Errors 3 | . . . 3 . Energy Discharges 2 | . . . 2 . Parts Fused 1 | . . . 1 . Data Loss (minor) 4 | . . 1 3 . Misfires 2 | . . 1 . 1 Alerts 1 | . . . 1 . Weapon Failures 1 | . . 1 . . Overload Shots . | . . . . . Overflow Damage 42 | . 24 18 . . Projectiles 24 | . 24 . . . Explosions . | . . . . . Melee 18 | . . 18 . . Knockbacks 7 | . 7 . . . Impact . | . . . . . Kinetic 6 | . 6 . . . Secondary 1 | . 1 . . . Self-Inflicted Damage 51 | . . 42 9 . Shots . | . . . . . Rammed 6 | . 2 3 1 . Targets Rammed 8 | . 4 3 1 . Kicked 2 | . 2 . . . Crushed . | . . . . . Highest Temperature 236 | 36 198 51 236 6 Average Temperature 37 | 16 44 15 92 3 Received Heat Transfer 350 | . 48 222 . 80 Siege Activations . | . . . . . Robots Corrupted 1 | . . 1 . . Combat Hostiles . | . . . . . Parts Fried 3 | . . 3 . . Impact Corruptions 2 | . . 2 . . Robots Melted . | . . . . . Combat Hostiles . | . . . . . Parts Melted 1 | 1 . . . . Heat Transferred 250 | 225 25 . . . Parts Sabotaged . | . . . . . Parts Stolen . | . . . . . Parts Stripped . | . . . . . Power Chain Reactions . | . . . . . Alert | -11 -10 -9 -9 -9 ------- Run | Yrd Mat Mat Min Exi Peak Influence 389 | 30 235 389 226 . Initial 151 | . 19 47 151 . Average 144 | 14 90 211 146 . Maximum Alert Level 1 | . 1 1 1 . Low Security (%) 62 | 100 80 45 54 . Level 1 37 | . 19 54 45 . Level 2 . | . . . . . Level 3 . | . . . . . Level 4 . | . . . . . Level 5 . | . . . . . High Security . | . . . . . Max Security . | . . . . . Squads Dispatched 4 | . 2 2 . . Investigation 1 | . . 1 . . Extermination . | . . . . . Reinforcement 3 | . 2 1 . . Assault . | . . . . . Garrison . | . . . . . Intercept . | . . . . . Searches Triggered . | . . . . . Construction Impeded . | . . . . . Haulers Reinforced . | . . . . . Active Scanning Responses . | . . . . . Cargo Convoy Interrupts . | . . . . . Stealth | -11 -10 -9 -9 -9 --------- Run | Yrd Mat Mat Min Exi Distress Signals 6 | . 1 5 . . Communications Jammed . | . . . . . Distress Signals . | . . . . . Times Spotted 53 | . 12 26 6 9 Peak Tracking Total 14 | . 5 4 3 14 Tactical Retreats 4 | . 1 2 1 . Traps | -11 -10 -9 -9 -9 ------- Run | Yrd Mat Mat Min Exi Traps Triggered . | . . . . . Indirectly . | . . . . . Trap Hack Attempts . | . . . . . Triggered . | . . . . . Disarmed . | . . . . . Reprogrammed . | . . . . . Reused . | . . . . . Traps Extracted . | . . . . . Installed . | . . . . . Triggered . | . . . . . Machines | -11 -10 -9 -9 -9 ---------- Run | Yrd Mat Mat Min Exi Machines Disabled . | . . . . . Max in Single Turn . | . . . . . Machines Repaired . | . . . . . Machines Dismantled . | . . . . . Machines Sabotaged . | . . . . . Overloaded Fab Kills . | . . . . . Hacking | -11 -10 -9 -9 -9 --------- Run | Yrd Mat Mat Min Exi Machines Accessed 13 | . 5 8 . . Terminals 12 | . 5 7 . . Fabricators . | . . . . . Repair Stations . | . . . . . Recycling Units 1 | . . 1 . . Scanalyzers . | . . . . . Garrison Access . | . . . . . Total Hacks 56 | . 20 36 . . Successful 36 | . 10 26 . . Failed 20 | . 10 10 . . Catastrophic 2 | . . 2 . . Database Lockouts . | . . . . . Manual 46 | . 20 26 . . Terminals 53 | . 20 33 . . Fabricators . | . . . . . Repair Stations . | . . . . . Recycling Units 3 | . . 3 . . Scanalyzers . | . . . . . Garrison Access . | . . . . . Terminal Hacks 14 | . 3 11 . . Part Schematic 5 | . 3 2 . . Prototype ID Bank 3 | . . 3 . . Terminal Index 1 | . . 1 . . Hauler Manifests 1 | . . 1 . . Registered Components 1 | . . 1 . . Registered Prototypes 1 | . . 1 . . Zone Layout 2 | . . 2 . . Fabricator Hacks . | . . . . . Repair Station Hacks . | . . . . . Recycling Unit Hacks 2 | . . 2 . . Retrieve Matter 1 | . . 1 . . Retrieve Components 1 | . . 1 . . Scanalyzer . | . . . . . Garrison Access Hacks . | . . . . . Unauthorized Hacks 20 | . 7 13 . . Terminals 20 | . 7 13 . . Track 1 | . . 1 . . Botnet 8 | . 2 6 . . Operators 1 | . . 1 . . Skim 10 | . 5 5 . . Fabricators . | . . . . . Repair Stations . | . . . . . Recycling Units . | . . . . . Scanalyzers . | . . . . . Garrison Access . | . . . . . Data Cores Recovered 1 | . 1 . . . Used . | . . . . . Hacking Detections 12 | . 5 7 . . Full Trace Events 1 | . . 1 . . Feedback Events . | . . . . . Feedback Blocked . | . . . . . Robot Schematics Acquired . | . . . . . Robots Built . | . . . . . Authchips . | . . . . . Time . | . . . . . Total Robot Build Rating . | . . . . . Part Schematics Acquired 5 | . 3 2 . . Parts Built . | . . . . . Authchips . | . . . . . Time . | . . . . . Total Part Build Rating . | . . . . . Parts Repaired . | . . . . . Time . | . . . . . Parts Recycled . | . . . . . Recycled Matter . | . . . . . Retrieved Matter . | . . . . . Retrieved Components 10 | . . 10 . . Parts Scanalyzed . | . . . . . Part Schematics Acquired . | . . . . . Parts Damaged . | . . . . . Bothacking | -11 -10 -9 -9 -9 ------------ Run | Yrd Mat Mat Min Exi Used RIF Installer . | . . . . . Robots Hacked . | . . . . . Non-combat . | . . . . . Combat . | . . . . . Robot Hacks Applied . | . . . . . Relay Couplers Released . | . . . . . Fabnet Peak Effective % . | . . . . . Robots Rewired . | . . . . . Allies Hacked . | . . . . . Hacks Repelled . | . . . . . Allies | -11 -10 -9 -9 -9 -------- Run | Yrd Mat Mat Min Exi Total Allies . | . . . . . Largest Group . | . . . . . Highest-Rated Group . | . . . . . Highest-Rated Ally . | . . . . . Total Orders . | . . . . . Ally Attacks . | . . . . . Total Damage . | . . . . . Kills . | . . . . . Allies Corrupted . | . . . . . Allies Melted . | . . . . . Intel | -11 -10 -9 -9 -9 ------- Run | Yrd Mat Mat Min Exi Robot Analysis Total . | . . . . . Derelict Logs Recovered 1 | . . . 1 . Drone Launches . | . . . . . Drone Recoveries . | . . . . . Exploration | -11 -10 -9 -9 -9 ------------- Run | Yrd Mat Mat Min Exi Turns Passed 3410 | 190 1017 1157 848 198 Spaces Moved 2249 | 131 494 786 678 160 Core 9 | . . 3 . 6 Treads 391 | . 376 15 . . Legs 249 | 131 118 . . . Wheels 1600 | . . 768 678 154 Hover . | . . . . . Flight . | . . . . . Fastest Speed 50 | 120 120 90 120 50 Average Speed 125 | 120 161 108 120 117 Slowest Speed 600 | 120 190 600 120 195 Overloaded Moves . | . . . . . Propulsion Burnouts . | . . . . . Robots Hopped . | . . . . . Cave-ins Triggered . | . . . . . Exploration Rate (%) 52 | 7 61 52 96 46 Regions Visited 4 Branch Regions 2 Pre-discovered Areas 5 | . . 4 1 . Known Exits Taken 3 | . 1 1 1 . Unknown Exits Taken 1 | 1 . . . . Scrap Searched 2 | . . . 2 . Spaces Dug 8 | . 8 . . . Terrain Destroyed 12 | . 10 2 . . Melee . | . . . . . Projectile 12 | . 10 2 . . AOE . | . . . . . Terrain Rammed . | . . . . . Walls Destroyed . | . . . . . Machines Disabled . | . . . . . Actions | -11 -10 -9 -9 -9 --------- Run | Yrd Mat Mat Min Exi Total 2632 | 144 629 984 704 171 Wait 77 | . 38 28 11 . Move 2245 | 130 493 785 677 160 Hop . | . . . . . Pick Up 66 | 2 23 37 3 1 Fast Attach 9 | 1 . 8 . . Attach 15 | . 1 5 1 8 Detach . | . . . . . Swap 33 | 2 15 14 2 . Drop 59 | . 17 37 3 2 Fire 120 | 9 38 67 6 . Melee . | . . . . . Ram 4 | . . 3 1 . Kick 2 | . 2 . . . Crush 2 | . 2 . . . Escape Stasis . | . . . . . Rewire . | . . . . . Trap . | . . . . . Miscellaneous . | . . . . . Route ------- -11/Scrapyard -10/Materials (discovered 4 exits: *Mat x3 / [*Min]) -9/Materials (discovered 5 exits: *Mat x3 / *Min x2) -9/Mines (discovered 3 exits: *Mat x2 / *Exi) -9/Exiles History --------- Turn | Location | Event 12 | -11/Scrapyard | Discovered new exit (range 3) 191 | -11/Scrapyard | Entered Materials 305 | -10/Materials | Build established: Mutant 493 | -10/Materials | Discovered new exit (range 12) 922 | -10/Materials | Discovered new exit (range 5) 1122 | -10/Materials | Learned location of 1 exit from Storage 1152 | -10/Materials | Learned Storage emergency access door positions 1172 | -10/Materials | Learned location of 2 exits from Subcaves 1180 | -10/Materials | Identified exit to Materials 1181 | -10/Materials | Learned location of 2 exits from Mines 1183 | -10/Materials | Loaded intel: 2 recycling unit locations 1184 | -10/Materials | Learned Materials emergency access door positions 1198 | -10/Materials | Learned Materials emergency access door positions 1208 | -10/Materials | Entered another Materials area 1208 | -9/Materials | Evolved 2 slots: Propulsion x1, Utility x1 1209 | -9/Materials | Identified exit to Materials 1537 | -9/Materials | Discovered new exit (range 8) 1667 | -9/Materials | Identified exit to Mines 1693 | -9/Materials | Learned location of 2 exits from Materials 1716 | -9/Materials | Learned location of Zion (-6) 1717 | -9/Materials | Learned Storage emergency access door positions 1728 | -9/Materials | Learned location of 1 exit from Storage 1747 | -9/Materials | Learned location of Storage (-7) 2365 | -9/Materials | Entered Mines 2366 | -9/Mines | Identified exit to Exiles 2432 | -9/Mines | YI-UF0 nonchalantly dropped a Grenade Launcher on the ground 2685 | -9/Mines | Deemed a non-threat by the Exiles lab entrance 2806 | -9/Mines | Discovered exit to Materials (range 9) 2953 | -9/Mines | Joined a pair of Derelicts in attacking an 0b10 outpost 3213 | -9/Mines | Entered Exiles 3255 | -9/Exiles | Met 8R-AWN 3281 | -9/Exiles | Met EX-HEX 3333 | -9/Exiles | Met EX-DEC 3364 | -9/Exiles | Attacked by the Exiles 3396 | -9/Exiles | Core integrity fell below 50% 3405 | -9/Exiles | Core integrity fell below 20% 3411 | -9/Exiles | Destroyed by as-12513 with Assembled Heavy Rifle Last Messages --------------- 03397_ Recoil Stabilizer destroyed. 03399_ Lgt. Armor Plating destroyed. 03401_ Knocked back. 03401_ as-99084 destroyed. 03401_ Knocked back. 03403_ Minigun destroyed. 03404_ Dropped Huge Storage Unit. 03405_ Penetrated by HV Slug. 03405_ Critical hit (Destroy). 03405_ Arm. Wheel destroyed. 03405_ Penetrated by HV Slug. 03405_ Arm. Wheel destroyed. 03407_ Penetrated by HV Slug. 03407_ Critical hit (Destroy). 03407_ Imp. Ion Engine destroyed. 03407_ Penetrated by HV Slug. 03407_ Critical hit (Destroy). 03407_ Minigun destroyed. 03407_ Arm. Wheel destroyed. 03409_ Recoil Stabilizer destroyed. Map ----- +----------------------------------------------------+ | ?????????????????????????????????????????????????? | | ?????????????????????????????????????????????????? | | ?????????????????????????????????????????????????? | | ?????????????????????????????????????????????????? | | ?????????????????????????????????????????????????? | | ?????????????????????????????????????????????????? | | ?????????????????????????????????????????????????? | | ?????????????????????????????????????????????????? | | ?????????????????????????????????????????????????? | | ?????????????????????????????????????????????????? | | ?????????????????????????????????????????????????? | | ?????????????????????????????????????????????????? | | ?????????????????????????????????????????????????? | | ?????????????????????????????????????????????????? | | ?????????????????????????????????????????????????? | | ?????????????????????????????????? ??????????????? | | ?????????????????????????????????? ""????????????? | | ?????????????????????????????????? ????????????? | | ?????????????????????????????????" ???????????? | | ???????????? ???????????????????" ????????????? | | ???????????? ????????????????? ""???????????? | | ??????????? ???????????????" "????????????? | | ????????????? ????????????# #????????????? | | ??????????????#"" ######???### ###??#####""? | | ???????????????#" """#####X# #"###""""""" | | ???????????????#" @ % """""" " "" | | ?????????????????# a "" """ " | | ?????????????????## " " | | ??????????????????### aa % | | ????????????????????### !! | | ??????????????????????## !%=% | | ???????????????????????## ]%!=] | | ????????????????????????##" =!! % | | ?????????????????????????#""" a! """"" | | ?????????????????????????#" ####?? | | ????????????????????????#"" %% ""##????? | | ????????????????????????#""" a% """##?????? | | ????????????????????????""" """##??????? | | ????????????????????????""" ""#???????? | | ????????????????????????"" ########?? | | ????????????????????????""" %## ### | | ????????????????????????"" "" | | ?????????????????????????"" % % | | ?????????????????????????"""" % | | ?????????????????????????# | | ??????????????????????????" " | | ??????????????????????????"""" ""## | | ???????????????????????????" ""#### | | ??????????????????????????? """"##??# | | ???????????????????????????"" """#??## | +----------------------------------------------------+ Best States ------------- Heat Dissipation 28 Energy Generation 12 Energy Capacity 265 Matter Stores 300 Matter Capacity 300 Sight Range 16 Terrain Scan Range 16 Terrain Scan Density 10 Additional Mass Support 6 Armor Coverage 225 Core Shielding 20 Evasion (%) 55 Targeting Accuracy 5 Recoil Reduction 4 Offensive Hacking 10 Item Schematics ----------------- Utility Shielding | -10/Materials | Hacked Grenade Launcher | -10/Materials | Hacked Hover Unit | -10/Materials | Hacked Rnf. Ion Engine | -9/Materials | Hacked Med. Armor Plating | -9/Materials | Hacked Robot Schematics ------------------ None Fabricated ------------ Nothing Alien Tech Used ----------------- None Achievements -------------- None Challenges ------------ None Game ------ Seed MetafiberAbsorptionTorch Manual? 0 Play Time 00:38:30 Cumulative 116.7 hours Start 2024.12.07 @ 21:26:04 End 2024.12.10 @ 11:31:41 Sessions 3 Manual Loads 0 Difficulty Rogue Special Mode None Game No. 156 Rogue 156 Adventurer 0 Explorer 0 Win Type - Total 1 Types 1/0/0/0/0/0/0/0/0 Lore% 62 Gallery% 50 Achievement% 37 Wizard Run 0 Options --------- Layout 1 ASCII 0 Keyboard 0 Movement Mouse Keybinds 0 Fullscreen 1 Font 24/Smallcaps Map View 50x40 Zoom Use 0% Tactical HUD 1 Map Filters NONE Filters NONE Steam 1 RUN: 36dd67c0-a0db-45fd-aa2d-733b22696d17